Cogmind - Beta 12 @@@ ROGUE MODE // 2024.02.12 @ 13:26:51 Player: puppuppit Result: Destroyed by G-47 Trooper with Particle Gun Performance ------------- Evolutions (1) 500 Regions Visited (6) 1200 Robots Destroyed (45) 225 Value Destroyed (838) 838 Prototype IDs (29) 580 Alien Tech Used (0) 0 Bonus (300) 300 TOTAL SCORE: 3643 Bonus ------- Aligned with FarCom 300 Cogmind --------- Core Integrity 0/400 Matter 270/300 Energy 99/100 System Corruption 15% Temperature Cool (11) Movement Flying (37) Location -8/Mines Parts ------- > --- POWER (1) -------- (None) > --- PROPULSION (2) --- Flight Unit Improved Flight Unit (fused) > --- UTILITY (4) ------ Small Storage Unit Machine Analyzer Core Analyzer Propulsion Shielding > --- WEAPON (2) ------- (None) > --- INVENTORY (8) ---- Flight Unit Flight Unit Cooling System Medium Matter Pod (100) Long-range Tractor Beam Field Lobotomy Kit (5) Powered Hammer Peak State ------------ > --- POWER ------------ (None) > --- PROPULSION ------- Improved Flight Unit Improved Flight Unit > --- UTILITY ---------- Small Storage Unit Improved Salvage Targeting Computer Improved Targeting Computer Improved Targeting Computer > --- WEAPON ----------- Beamcaster Powered Hammer > --- INVENTORY -------- Improved Flight Unit Cooling System Small Storage Unit Machine Analyzer Core Analyzer Propulsion Shielding Long-range Tractor Beam Small Laser [Rating: 25] Favorites ----------- Power Light Ion Engine Engine Light Ion Engine Propulsion Hover Unit Wheel Wheel Hover Unit Hover Unit Flight Unit Improved Flight Unit Utility Small Storage Unit Device Structural Scanner Storage Small Storage Unit Processor Improved Targeting Computer Hackware Hacking Suite Protection Propulsion Shielding Weapon Medium Laser Energy Gun Medium Laser Energy Cannon Beam Cannon Ballistic Gun Light Assault Rifle Launcher Grenade Launcher Impact Weapon Powered Hammer Build | -11 -10 -10 -9 -9 -9 -8 ------- Run | Jun Mat Min Mat Min Exi Min Slots Evolved 2 | . . . 2 . . . Power . | . . . . . . . Propulsion . | . . . . . . . Utility 2 | . . . 2 . . . Weapon . | . . . . . . . Parts Attached 68 | 9 21 5 13 15 3 2 Power 9 | 2 2 1 1 3 . . Engine 9 | 2 2 1 1 3 . . Core . | . . . . . . . Reactor . | . . . . . . . Propulsion 18 | 3 7 2 2 4 . . Treads . | . . . . . . . Leg . | . . . . . . . Wheel 4 | 3 1 . . . . . Hover 8 | . 6 2 . . . . Flight 6 | . . . 2 4 . . Utility 19 | 2 4 . 3 5 3 2 Device 3 | 1 . . . 1 . 1 Storage 5 | 1 1 . 1 . 2 . Processor 8 | . 2 . 2 3 1 . Hackware 1 | . 1 . . . . . Protection 2 | . . . . 1 . 1 Artifact . | . . . . . . . Weapon 22 | 2 8 2 7 3 . . Energy Gun 17 | 2 6 . 7 2 . . Energy Cannon 1 | . 1 . . . . . Ballistic Gun 1 | . . 1 . . . . Ballistic Cannon . | . . . . . . . Launcher 2 | . 1 1 . . . . Special Weapon . | . . . . . . . Impact Weapon 1 | . . . . 1 . . Slashing Weapon . | . . . . . . . Piercing Weapon . | . . . . . . . Special Melee Weapon . | . . . . . . . Unidentified Prototypes . | . . . . . . . Corrupted Parts 2 | 1 1 . . . . . System Corruption 4 | 2 2 . . . . . Parts Lost 13 | . . 2 2 7 . 2 Power 1 | . . . . . . 1 Propulsion 4 | . . 1 1 2 . . Utility 5 | . . . . 4 . 1 Weapon 3 | . . 1 1 1 . . Highest Loss Streak 6 | . . 2 1 6 . 2 To Critical Strikes . | . . . . . . . Average Slot Usage (%) 87 | . 100 100 90 63 68 77 Engine 11 | . 14 14 11 6 11 11 Wheel 4 | . 13 . . . . . Hover 9 | . 14 28 3 . . . Flight 10 | . . . 18 19 22 22 Device 4 | . 5 . . 5 11 9 Storage 12 | . 14 14 11 11 11 11 Processor 11 | . 6 . 22 13 13 22 Hackware 5 | . 2 14 11 . . . Energy Gun 9 | . 27 1 2 4 . . Ballistic Gun 3 | . . 13 8 . . . Launcher 2 | . . 13 1 . . . Naked Turns . | . . . . . . . Heaviest Build 14 | 14 13 12 12 11 9 9 Greatest Support 26 | 26 20 12 12 10 9 9 Greatest Overweight (x) 2 | . 1 . 2 2 . . Average Overweight (x) . | . . . . . . . Largest Inventory Capacity 8 | 8 8 8 8 8 8 8 Average Capacity 7 | 7 8 8 8 8 8 8 Most Carried 8 | 6 8 8 8 8 8 8 Average Carried 7 | 1 7 7 7 7 7 7 Final Capacity 8 | 8 8 8 8 8 8 8 Final Carried 8 | 6 8 8 8 8 8 7 Class Distribution -------------------- 61% | Mutant 29% | Scavenger-Mutant 9% | Scavenger-Scout Dominant Class ---------------- Mutant | -10/Materials Scavenger-Mutant | -10/Mines Mutant | -9/Materials Mutant | -9/Mines Mutant | -9/Exiles Scavenger-Scout | -8/Mines Resources | -11 -10 -10 -9 -9 -9 -8 ----------- Run | Jun Mat Min Mat Min Exi Min Matter Collected 1408 | 290 343 332 204 116 72 51 Remotely . | . . . . . . . Salvage Created 1356 | 228 593 71 439 25 . . Parts 93 | 19 38 7 29 . . . Haulers Intercepted 4 | . 1 . 3 . . . Recyclers Shooed 5 | . 3 1 1 . . . Parts Field Recycled . | . . . . . . . Retrieved Matter . | . . . . . . . Parts Self-Destructed . | . . . . . . . Prevented . | . . . . . . . Kills | -11 -10 -10 -9 -9 -9 -8 ------- Run | Jun Mat Min Mat Min Exi Min Combat Hostiles Destroyed 23 | . 11 5 5 2 . . Melee 2 | . . . . 2 . . Guns 13 | . 7 2 4 . . . AOE 8 | . 4 3 1 . . . Classes Destroyed 10 | 3 6 . . 1 . . Worker 5 | 2 . . 3 . . . Tunneler 5 | 5 . . . . . . Hauler 4 | . 1 . 3 . . . Recycler 2 | 1 1 . . . . . Mechanic 2 | . 1 . 1 . . . Operator 2 | . 1 . 1 . . . Watcher 4 | . 3 . 1 . . . Swarmer 6 | . 3 3 . . . . Grunt 15 | . 8 2 5 . . . Assembled 2 | . . . . 2 . . Best Kill Streak 7 | 6 5 3 7 2 . . Combat Bots Only 3 | . 3 3 3 2 . . Max Kills in Single Turn 3 | 1 2 1 3 1 . . Gunslinging . | . . . . . . . Exploded 2 | . 2 1 1 . . . Melee 1 | . . . . 1 . . Uniques/NPCs Destroyed . | . . . . . . . Combat | -11 -10 -10 -9 -9 -9 -8 -------- Run | Jun Mat Min Mat Min Exi Min Damage Taken 1589 | 6 357 196 154 764 . 112 Core 570 | 6 124 35 11 363 . 31 Absorbed by Shields . | . . . . . . . Redirected to Shielding 5 | . . . . . . 5 Core Remaining (%) 65 | 97 . 34 . . . . Volleys Fired 119 | 12 40 12 55 . . . Largest 2 | 2 2 2 2 . . . Hottest 90 | 90 90 90 90 . . . Shots Fired 196 | 24 78 23 71 . . . Gun 185 | 24 76 18 67 . . . Cannon . | . . . . . . . Launcher 11 | . 2 5 4 . . . Special . | . . . . . . . Kinetic 55 | . . 6 49 . . . Thermal 62 | 12 38 6 6 . . . Explosive 11 | . 2 5 4 . . . Electromagnetic 68 | 12 38 6 12 . . . Robot Hit Streak 16 | 9 9 3 16 . . . Robot Miss Streak 7 | 1 7 3 5 . . . Penetration Max . | . . . . . . . Secondary Targets 4 | . 3 1 . . . . Max Gunslinging Chain 1 | . 1 1 . . . . Shots Hit Robots 124 | 18 46 7 51 2 . . Core Hits 68 | 9 28 6 23 2 . . Critical Kills 2 | . . . . 2 . . Critical Parts Destroyed . | . . . . . . . Critical Strikes 3 | . 1 . . 2 . . Corrupt 1 | . 1 . . . . . Smash 2 | . . . . 2 . . Melee Attacks 3 | . . . . 3 . . Impact 3 | . . . . 3 . . Slashing . | . . . . . . . Piercing . | . . . . . . . Sneak Attacks . | . . . . . . . Combat Hostiles . | . . . . . . . Follow-up Attacks . | . . . . . . . Damage Inflicted 2507 | 277 1137 314 669 110 . . Guns 1522 | 255 626 103 538 . . . Cannons . | . . . . . . . Explosions 875 | 22 511 211 131 . . . Melee 110 | . . . . 110 . . Ramming . | . . . . . . . Kinetic 356 | . . 25 331 . . . Thermal 913 | 136 596 114 67 . . . Explosive 412 | . 165 152 95 . . . Electromagnetic 716 | 141 376 23 176 . . . Impact 110 | . . . . 110 . . Slashing . | . . . . . . . Piercing . | . . . . . . . Highest Corruption 15 | 2 5 5 . 15 15 15 Average Corruption 7 | 2 2 5 . 12 15 15 Corruption Purged . | . . . . . . . Corruption Blocked . | . . . . . . . Effects 42 | . 5 7 . 10 10 10 Message Errors 6 | . . 1 . 2 2 1 Matter Fused 14 | . . 4 . 1 4 5 Heat Flow Errors 5 | . 1 1 . 2 1 . Energy Discharges 5 | . . . . 1 3 1 Parts Fused 1 | . . . . . . 1 Data Loss (minor) 6 | . 2 1 . 2 . 1 Data Loss (major) 2 | . 1 . . 1 . . Alerts 2 | . 1 . . . . 1 Misdirections 1 | . . . . 1 . . Overload Shots . | . . . . . . . Overflow Damage 65 | . . 65 . . . . Projectiles . | . . . . . . . Explosions 65 | . . 65 . . . . Melee . | . . . . . . . Knockbacks . | . . . . . . . Impact . | . . . . . . . Kinetic . | . . . . . . . Secondary . | . . . . . . . Self-Inflicted Damage 191 | 6 44 113 28 . . . Shots 8 | 1 2 4 1 . . . Rammed . | . . . . . . . Targets Rammed . | . . . . . . . Kicked . | . . . . . . . Crushed . | . . . . . . . Highest Temperature 312 | 240 312 240 114 264 196 . Average Temperature 95 | 92 117 81 31 106 102 . Received Heat Transfer 459 | . 111 . 72 240 . 36 Effects 2 | . 2 . . . . . Energy Bleed 2 | . 2 . . . . . Siege Activations . | . . . . . . . Robots Corrupted . | . . . . . . . Combat Hostiles . | . . . . . . . Parts Fried 1 | . . . 1 . . . Impact Corruptions . | . . . . . . . Robots Melted . | . . . . . . . Combat Hostiles . | . . . . . . . Parts Melted 1 | . . 1 . . . . Heat Transferred 1959 | 383 1253 248 75 . . . Parts Sabotaged . | . . . . . . . Parts Stolen . | . . . . . . . Parts Stripped . | . . . . . . . Power Chain Reactions 9 | 1 6 1 1 . . . Missiles Intercepted . | . . . . . . . Alert | -11 -10 -10 -9 -9 -9 -8 ------- Run | Jun Mat Min Mat Min Exi Min Peak Influence 325 | 40 300 300 325 126 . 60 Initial 126 | . 26 114 117 126 . . Average 134 | 16 159 236 146 106 . 3 Maximum Alert Level 1 | . 1 1 1 . . . Low Security (%) 67 | 100 66 4 69 100 . 100 Level 1 32 | . 33 95 30 . . . Level 2 . | . . . . . . . Level 3 . | . . . . . . . Level 4 . | . . . . . . . Level 5 . | . . . . . . . High Security . | . . . . . . . Max Security . | . . . . . . . Squads Dispatched 5 | . 3 . 1 1 . . Investigation 5 | . 3 . 1 1 . . Extermination . | . . . . . . . Reinforcement . | . . . . . . . Assault . | . . . . . . . Garrison . | . . . . . . . Intercept . | . . . . . . . Searches Triggered . | . . . . . . . Construction Impeded . | . . . . . . . Haulers Reinforced . | . . . . . . . Active Scanning Responses . | . . . . . . . Cargo Convoy Interrupts . | . . . . . . . Stealth | -11 -10 -10 -9 -9 -9 -8 --------- Run | Jun Mat Min Mat Min Exi Min Distress Signals 4 | . 1 . 3 . . . Communications Jammed . | . . . . . . . Distress Signals . | . . . . . . . Times Spotted 83 | . 17 4 17 34 . 11 Peak Tracking Total 15 | . 3 2 7 15 . 7 Tactical Retreats 7 | . . . 2 4 . 1 Traps | -11 -10 -10 -9 -9 -9 -8 ------- Run | Jun Mat Min Mat Min Exi Min Traps Triggered 1 | . 1 . . . . . Indirectly . | . . . . . . . Trap Hack Attempts . | . . . . . . . Triggered . | . . . . . . . Disarmed . | . . . . . . . Reprogrammed . | . . . . . . . Reused . | . . . . . . . Traps Extracted . | . . . . . . . Installed 3 | . . 3 . . . . Triggered . | . . . . . . . Machines | -11 -10 -10 -9 -9 -9 -8 ---------- Run | Jun Mat Min Mat Min Exi Min Machines Disabled 6 | . 2 2 2 . . . Max in Single Turn 1 | . 1 1 1 . . . Machines Repaired . | . . . . . . . Machines Sabotaged . | . . . . . . . Overloaded Fab Kills . | . . . . . . . Hacking | -11 -10 -10 -9 -9 -9 -8 --------- Run | Jun Mat Min Mat Min Exi Min Machines Accessed 23 | . 10 . 7 1 5 . Terminals 13 | . 8 . 5 . . . Fabricators . | . . . . . . . Repair Stations 1 | . 1 . . . . . Recycling Units 1 | . 1 . . . . . Scanalyzers 2 | . . . 2 . . . Garrison Access . | . . . . . . . Total Hacks 106 | . 28 . 27 1 50 . Successful 82 | . 11 . 20 1 50 . Failed 24 | . 17 . 7 . . . Catastrophic 7 | . 7 . . . . . Database Lockouts . | . . . . . . . Manual 25 | . 16 . 8 . 1 . Terminals 44 | . 25 . 19 . . . Fabricators . | . . . . . . . Repair Stations 2 | . 2 . . . . . Recycling Units 1 | . 1 . . . . . Scanalyzers 8 | . . . 8 . . . Garrison Access . | . . . . . . . Terminal Hacks 73 | . 10 . 12 1 50 . Record 50 | . 1 . . . 49 . Robot Schematic 4 | . . . 4 . . . Robot Analysis 4 | . 4 . . . . . Prototype ID Bank 3 | . 2 . 1 . . . Open Door 1 | . . . . 1 . . Level Access Points 1 | . . . 1 . . . Branch Access Points 2 | . 1 . 1 . . . Terminal Index 1 | . . . 1 . . . Alert Level 1 | . . . 1 . . . Unreport Threat 1 | . . . 1 . . . Recall Investigation 1 | . 1 . . . . . Zone Layout 3 | . 1 . 2 . . . EX-Prototype ID Bank 1 | . . . . . 1 . Fabricator Hacks . | . . . . . . . Repair Station Hacks . | . . . . . . . Recycling Unit Hacks 1 | . 1 . . . . . Retrieve Components 1 | . 1 . . . . . Scanalyzer 8 | . . . 8 . . . Insert Component 4 | . . . 4 . . . Analyze 4 | . . . 4 . . . Garrison Access Hacks . | . . . . . . . Unauthorized Hacks . | . . . . . . . Terminals . | . . . . . . . Fabricators . | . . . . . . . Repair Stations . | . . . . . . . Recycling Units . | . . . . . . . Scanalyzers . | . . . . . . . Garrison Access . | . . . . . . . Data Cores Recovered 1 | . . . 1 . . . Used 1 | . . . 1 . . . Hacking Detections 16 | . 9 . 7 . . . Full Trace Events 5 | . 3 . 2 . . . Feedback Events 1 | . 1 . . . . . Corruption 1 | . 1 . . . . . Feedback Blocked . | . . . . . . . Robot Schematics Acquired 4 | . . . 4 . . . Robots Built . | . . . . . . . Authchips . | . . . . . . . Time . | . . . . . . . Total Robot Build Rating . | . . . . . . . Part Schematics Acquired 4 | . . . 4 . . . Parts Built . | . . . . . . . Authchips . | . . . . . . . Time . | . . . . . . . Total Part Build Rating . | . . . . . . . Parts Repaired . | . . . . . . . Time . | . . . . . . . Parts Recycled . | . . . . . . . Recycled Matter . | . . . . . . . Retrieved Matter . | . . . . . . . Retrieved Components 10 | . 10 . . . . . Parts Scanalyzed 4 | . . . 4 . . . Part Schematics Acquired 4 | . . . 4 . . . Parts Damaged . | . . . . . . . Bothacking | -11 -10 -10 -9 -9 -9 -8 ------------ Run | Jun Mat Min Mat Min Exi Min Used RIF Installer . | . . . . . . . Robots Hacked . | . . . . . . . Non-combat . | . . . . . . . Combat . | . . . . . . . Robot Hacks Applied . | . . . . . . . Relay Couplers Released . | . . . . . . . Fabnet Peak Effective % . | . . . . . . . Robots Rewired . | . . . . . . . Allies Hacked . | . . . . . . . Hacks Repelled . | . . . . . . . Allies | -11 -10 -10 -9 -9 -9 -8 -------- Run | Jun Mat Min Mat Min Exi Min Total Allies 2 | . . . . 2 . . Largest Group 2 | . . . . 2 2 . Highest-Rated Group 41 | . . . . 41 41 . Highest-Rated Ally 31 | . . . . 31 31 . Total Orders . | . . . . . . . Ally Attacks . | . . . . . . . Total Damage . | . . . . . . . Kills . | . . . . . . . Allies Corrupted . | . . . . . . . Allies Melted 1 | . . . . 1 . . Intel | -11 -10 -10 -9 -9 -9 -8 ------- Run | Jun Mat Min Mat Min Exi Min Robot Analysis Total 4 | . 4 . . . . . Derelict Logs Recovered 2 | . . 1 . 1 . . Drone Launches . | . . . . . . . Drone Recoveries . | . . . . . . . Exploration | -11 -10 -10 -9 -9 -9 -8 ------------- Run | Jun Mat Min Mat Min Exi Min Turns Passed 2053 | 108 587 316 354 255 204 229 Spaces Moved 2810 | 60 588 471 491 472 481 247 Core 4 | 1 . . . 3 . . Treads . | . . . . . . . Legs . | . . . . . . . Wheels 334 | 59 275 . . . . . Hover 845 | . 313 471 61 . . . Flight 1627 | . . . 430 469 481 247 Fastest Speed 34 | 50 56 56 37 34 37 37 Average Speed 48 | 88 67 56 41 37 37 37 Slowest Speed 180 | 100 120 56 180 180 37 37 Overloaded Moves . | . . . . . . . Propulsion Burnouts . | . . . . . . . Robots Hopped 24 | . . . 5 15 . 4 Cave-ins Triggered . | . . . . . . . Exploration Rate (%) 66 | 4 81 98 50 89 91 49 Regions Visited 6 Branch Regions 4 Pre-discovered Areas 2 | . . 1 . . 1 . Known Exits Taken 2 | . 1 . 1 . . . Unknown Exits Taken 4 | 1 . 1 . 1 1 . Scrap Searched 4 | . . 1 . 2 . 1 Spaces Dug . | . . . . . . . Terrain Destroyed 97 | . 31 54 12 . . . Melee . | . . . . . . . Projectile . | . . . . . . . AOE 97 | . 31 54 12 . . . Terrain Rammed . | . . . . . . . Walls Destroyed . | . . . . . . . Machines Disabled . | . . . . . . . Actions | -11 -10 -10 -9 -9 -9 -8 --------- Run | Jun Mat Min Mat Min Exi Min Total 3293 | 87 705 502 583 529 507 380 Wait 222 | . 18 1 5 44 20 134 Move 2762 | 59 587 470 480 446 480 240 Hop 18 | . . . 5 10 . 3 Pick Up 40 | 5 15 6 9 3 2 . Fast Attach 28 | 8 7 1 4 7 . 1 Attach 14 | . . 1 7 3 2 1 Detach 7 | 1 1 . 4 1 . . Swap 26 | 1 14 3 2 5 1 . Drop 51 | 1 23 5 12 7 2 1 Fire 119 | 12 40 12 55 . . . Melee 3 | . . . . 3 . . Ram . | . . . . . . . Kick . | . . . . . . . Crush . | . . . . . . . Escape Stasis . | . . . . . . . Rewire . | . . . . . . . Trap 3 | . . 3 . . . . Miscellaneous . | . . . . . . . Route ------- -11/Junkyard -10/Materials (discovered 5 exits: *Mat x3 / *Min x2) -10/Mines (discovered 2 exits: *Mat x2) -9/Materials (discovered 4 exits: *Mat x3 / *Min) -9/Mines (discovered 2 exits: *Mat / *Exi) -9/Exiles -8/Mines History --------- Turn | Location | Event 14 | -11/Junkyard | Discovered new exit (range 16) 109 | -11/Junkyard | Entered Materials 139 | -10/Materials | Discovered new exit (range 6) 175 | -10/Materials | Discovered new exit (range 7) 211 | -10/Materials | Discovered new exit (range 13) 318 | -10/Materials | Build established: Mutant 487 | -10/Materials | Identified exit to Mines 529 | -10/Materials | Discovered new exit (range 10) 646 | -10/Materials | Core integrity fell below 50% 696 | -10/Materials | Entered Mines 741 | -10/Mines | Discovered new exit (range 7) 802 | -10/Mines | Found a damaged Exp. Sensor Array with a note attached 804 | -10/Mines | Found Prototype Device 873 | -10/Mines | Found a hidden stash of uninstalled traps 929 | -10/Mines | Discovered new exit (range 9) 1002 | -10/Mines | Build established: Scavenger-Mutant 1012 | -10/Mines | Entered Materials 1012 | -9/Materials | Evolved 2 slots: Utility x2 1030 | -9/Materials | Identified exit to Mines 1079 | -9/Materials | Identified exit to Materials 1361 | -9/Materials | Build established: Mutant 1366 | -9/Materials | Entered Mines 1367 | -9/Mines | Assembled infested the area 1369 | -9/Mines | Met a Derelict shopkeep closing up shop 1388 | -9/Mines | Learned 2 Materials zone layouts 1403 | -9/Mines | Discovered exit to Materials (range 10) 1455 | -9/Mines | System corruption reached 10% 1458 | -9/Mines | Core integrity fell below 50% 1477 | -9/Mines | Core integrity fell below 20% 1488 | -9/Mines | Lost 6 parts (2n3u1w) 1590 | -9/Mines | Deemed a non-threat by the Exiles lab entrance 1590 | -9/Mines | Discovered new exit (range 5) 1621 | -9/Mines | Entered Exiles 1621 | -9/Exiles | Accompanied by 2 allies 1651 | -9/Exiles | Led the pair of lost Derelicts to a safe place 1653 | -9/Exiles | Met 8R-AWN 1660 | -9/Exiles | Met EX-HEX 1687 | -9/Exiles | Met EX-DEC 1695 | -9/Exiles | Learned location of Zion (-6) 1711 | -9/Exiles | Visited The Gauntlet 1755 | -9/Exiles | Met EX-BIN 1760 | -9/Exiles | Aligned with FarCom system 1760 | -9/Exiles | Given EX-Vault access code 1775 | -9/Exiles | Opened EX-Vault 1779 | -9/Exiles | Found Field Lobotomy Kit 1788 | -9/Exiles | Warned to stay clear of 0b10 Research branches 1820 | -9/Exiles | Discovered new exit (range 14) 1825 | -9/Exiles | Left Exiles lab with Field Lobotomy Kit 1825 | -9/Exiles | Entered Mines 2054 | -8/Mines | Destroyed by G-47 Trooper with Particle Gun Last Messages --------------- 01871_ System corrupted: Component data lost. 01888_ System corrupted: Matter fused (-6). 01905_ System corrupted: IFF burst signal emitted. 01924_ System corrupted: Imp. Flight Unit fused. 01930_ K-01 Serf collects debris. 01942_ System corrupted: Energy discharge (-48). 01959_ System corrupted: Matter fused (-10). 01988_ Searching scrap... 01988_ Found 17 Matter. 01988_ Found Reaction Control System. 01988_ Found 34 Matter. 01988_ Dropped Structural Scanner. 01989_ Acquired 34 matter. 01989_ Acquired Reaction Control System. 01991_ Acquired 17 matter. 02006_ System corrupted: Matter fused (-8). 02021_ P/